[Event "Early-Titled-Tuesday-Blitz-March-05-2024"]
[Site "Chess.com"]
[Date "2024.03.05"]
[Round "11"]
[White "Chernov_Alexander_A"]
[Black "volodja49"]
[Result "0-1"]
[WhiteElo "2340"]
[BlackElo "2572"]
[TimeControl "180+1"]
[EndTime "10:11:32 PST"]
[Termination "volodja49 won on time"]

1. d4 {[%clk 0:03:00.9]} 1... d5 {[%clk 0:02:59]} 2. Nf3 {[%clk 0:02:59.5]} 2...
Nf6 {[%clk 0:02:57]} 3. c4 {[%clk 0:02:59.3]} 3... c6 {[%clk 0:02:57.2]} 4. e3
{[%clk 0:02:58.4]} 4... Bg4 {[%clk 0:02:56]} 5. Qb3 {[%clk 0:02:57.3]} 5... Qb6
{[%clk 0:02:53.5]} 6. c5 {[%clk 0:02:56.6]} 6... Qxb3 {[%clk 0:02:52.4]} 7. axb3
{[%clk 0:02:56]} 7... Bxf3 {[%clk 0:02:53.3]} 8. gxf3 {[%clk 0:02:54.9]} 8... a6
{[%clk 0:02:54.2]} 9. f4 {[%clk 0:02:54.9]} 9... Nbd7 {[%clk 0:02:53.5]} 10. b4
{[%clk 0:02:54]} 10... Rc8 {[%clk 0:02:53.6]} 11. Nd2 {[%clk 0:02:53.9]} 11...
e6 {[%clk 0:02:52.9]} 12. Nb3 {[%clk 0:02:53.7]} 12... Be7 {[%clk 0:02:50.1]}
13. Na5 {[%clk 0:02:53.6]} 13... Rc7 {[%clk 0:02:45.8]} 14. Bd3 {[%clk
0:02:48.6]} 14... O-O {[%clk 0:02:43.3]} 15. Ke2 {[%clk 0:02:48.5]} 15... Re8
{[%clk 0:02:40.1]} 16. Bd2 {[%clk 0:02:47.1]} 16... Nf8 {[%clk 0:02:36.9]} 17.
f3 {[%clk 0:02:46.3]} 17... Bd8 {[%clk 0:02:27.7]} 18. e4 {[%clk 0:02:37.1]}
18... Rd7 {[%clk 0:02:27.1]} 19. e5 {[%clk 0:02:35.8]} 19... Nh5 {[%clk
0:02:25.7]} 20. f5 {[%clk 0:02:34.8]} 20... g6 {[%clk 0:02:18.9]} 21. f6 {[%clk
0:02:31.3]} 21... Nxf6 {[%clk 0:01:55.1]} 22. exf6 {[%clk 0:02:30.5]} 22... Bxf6
{[%clk 0:01:54.1]} 23. Bc3 {[%clk 0:02:27.7]} 23... e5 {[%clk 0:01:51.2]} 24.
dxe5 {[%clk 0:02:27.1]} 24... Bxe5 {[%clk 0:01:52.1]} 25. Bxe5 {[%clk
0:02:25.6]} 25... Rxe5+ {[%clk 0:01:53]} 26. Kd2 {[%clk 0:02:25.5]} 26... Ne6
{[%clk 0:01:45.9]} 27. Rae1 {[%clk 0:02:19.9]} 27... f6 {[%clk 0:01:44.9]} 28.
Rxe5 {[%clk 0:01:54.6]} 28... fxe5 {[%clk 0:01:45.8]} 29. Re1 {[%clk 0:01:54.3]}
29... Nd4 {[%clk 0:01:43.5]} 30. Re3 {[%clk 0:01:50.5]} 30... Rf7 {[%clk
0:01:42.2]} 31. Be2 {[%clk 0:01:47.3]} 31... Re7 {[%clk 0:01:22.4]} 32. Bd1
{[%clk 0:01:29.3]} 32... Kf7 {[%clk 0:01:19.9]} 33. h4 {[%clk 0:01:18.3]} 33...
Nf5 {[%clk 0:01:17.2]} 34. Re1 {[%clk 0:01:15.4]} 34... h5 {[%clk 0:01:13.5]}
35. Rh1 {[%clk 0:01:13.3]} 35... Kf6 {[%clk 0:01:12.6]} 36. Rh2 {[%clk
0:01:12.6]} 36... Nd4 {[%clk 0:01:11.2]} 37. Ke3 {[%clk 0:01:08.7]} 37... Nf5+
{[%clk 0:01:10.1]} 38. Kf2 {[%clk 0:01:06.8]} 38... Rd7 {[%clk 0:01:08.5]} 39.
Bc2 {[%clk 0:01:05.3]} 39... Nd4 {[%clk 0:01:02.6]} 40. Bd3 {[%clk 0:01:01.6]}
40... Rg7 {[%clk 0:01:03.5]} 41. Ke3 {[%clk 0:00:59.9]} 41... Ne6 {[%clk
0:00:58.4]} 42. Bf1 {[%clk 0:00:51.4]} 42... Nf4 {[%clk 0:00:57.2]} 43. Nb3
{[%clk 0:00:48.7]} 43... g5 {[%clk 0:00:54.7]} 44. hxg5+ {[%clk 0:00:47.5]}
44... Rxg5 {[%clk 0:00:55.5]} 45. Na5 {[%clk 0:00:42.2]} 45... Rg7 {[%clk
0:00:54.1]} 46. Bd3 {[%clk 0:00:40.2]} 46... Kg5 {[%clk 0:00:47.7]} 47. Rh1
{[%clk 0:00:38.3]} 47... Kh6 {[%clk 0:00:46.4]} 48. Bf1 {[%clk 0:00:37.1]} 48...
Rf7 {[%clk 0:00:44]} 49. Nb3 {[%clk 0:00:34]} 49... Ne6 {[%clk 0:00:42.1]} 50.
Na5 {[%clk 0:00:33.4]} 50... Nd4 {[%clk 0:00:41]} 51. Be2 {[%clk 0:00:31.2]}
51... Nc2+ {[%clk 0:00:40.7]} 52. Kd2 {[%clk 0:00:30.7]} 52... Nxb4 {[%clk
0:00:41.4]} 53. f4 {[%clk 0:00:29.7]} 53... Rxf4 {[%clk 0:00:37]} 54. Rxh5+
{[%clk 0:00:28.9]} 54... Kg6 {[%clk 0:00:37.5]} 55. Nxb7 {[%clk 0:00:27]} 55...
Rd4+ {[%clk 0:00:38.4]} 56. Ke1 {[%clk 0:00:25.9]} 56... Nc2+ {[%clk 0:00:34.2]}
57. Kf2 {[%clk 0:00:24.7]} 57... Rb4 {[%clk 0:00:35.1]} 58. Nd6 {[%clk
0:00:23.3]} 58... Rxb2 {[%clk 0:00:33.4]} 59. Rh8 {[%clk 0:00:22.3]} 59... Nd4
{[%clk 0:00:32.3]} 60. Rg8+ {[%clk 0:00:21.8]} 60... Kf6 {[%clk 0:00:28.4]} 61.
Rf8+ {[%clk 0:00:21.2]} 61... Ke7 {[%clk 0:00:26.7]} 62. Rf7+ {[%clk 0:00:21.3]}
62... Ke6 {[%clk 0:00:26.7]} 63. Rf8 {[%clk 0:00:19.3]} 63... Rxe2+ {[%clk
0:00:25.9]} 64. Kf1 {[%clk 0:00:18.8]} 64... Rc2 {[%clk 0:00:26.8]} 65. Re8+
{[%clk 0:00:16.9]} 65... Kf6 {[%clk 0:00:25.7]} 66. Rf8+ {[%clk 0:00:16.3]}
66... Kg5 {[%clk 0:00:22.5]} 67. Rg8+ {[%clk 0:00:15.8]} 67... Kf4 {[%clk
0:00:21.8]} 68. Rf8+ {[%clk 0:00:15.7]} 68... Ke3 {[%clk 0:00:22]} 69. Ra8
{[%clk 0:00:15.4]} 69... Nf3 {[%clk 0:00:19.2]} 70. Nf5+ {[%clk 0:00:11]} 70...
Kf4 {[%clk 0:00:18.6]} 71. Rf8 {[%clk 0:00:09.6]} 71... e4 {[%clk 0:00:19.5]}
72. Nd4+ {[%clk 0:00:08.3]} 72... Ke5 {[%clk 0:00:15.9]} 73. Nxc2 {[%clk
0:00:08.5]} 73... d4 {[%clk 0:00:16.8]} 74. Re8+ {[%clk 0:00:07.3]} 74... Kd5
{[%clk 0:00:16.9]} 75. Rd8+ {[%clk 0:00:06.9]} 75... Kxc5 {[%clk 0:00:16.4]} 76.
Na3 {[%clk 0:00:05.5]} 76... d3 {[%clk 0:00:13.3]} 77. Rd7 {[%clk 0:00:05.3]}
77... Kb4 {[%clk 0:00:11.9]} 78. Nb1 {[%clk 0:00:04.5]} 78... c5 {[%clk
0:00:07.4]} 79. Kf2 {[%clk 0:00:04.9]} 79... Nd4 {[%clk 0:00:05.7]} 80. Ke3
{[%clk 0:00:05.1]} 80... Nb3 {[%clk 0:00:04.3]} 81. Kxe4 {[%clk 0:00:04.9]}
81... c4 {[%clk 0:00:05.2]} 82. Rb7+ {[%clk 0:00:03.5]} 82... Kc5 {[%clk
0:00:05.2]} 83. Nc3 {[%clk 0:00:02.9]} 83... Nd2+ {[%clk 0:00:03]} 84. Ke3
{[%clk 0:00:02]} 84... Nf1+ {[%clk 0:00:03.3]} 0-1

[Event "Early-Titled-Tuesday-Blitz-March-05-2024"]
[Site "Chess.com"]
[Date "2024.03.05"]
[Round "11"]
[White "profedechess93"]
[Black "Boorchess"]
[Result "1-0"]
[WhiteElo "2644"]
[BlackElo "2521"]
[TimeControl "180+1"]
[EndTime "10:11:45 PST"]
[Termination "profedechess93 won by resignation"]

1. e4 {[%clk 0:02:59.1]} 1... e5 {[%clk 0:02:59.8]} 2. Nf3 {[%clk 0:02:58.9]}
2... Nf6 {[%clk 0:03:00.2]} 3. d4 {[%clk 0:02:56.9]} 3... Nxe4 {[%clk 0:03:00]}
4. dxe5 {[%clk 0:02:57.3]} 4... d5 {[%clk 0:02:59.8]} 5. Nbd2 {[%clk 0:02:57.9]}
5... Bf5 {[%clk 0:02:54.9]} 6. Nd4 {[%clk 0:02:47.1]} 6... Bg6 {[%clk 0:02:53]}
7. Nxe4 {[%clk 0:02:45.6]} 7... Bxe4 {[%clk 0:02:50.6]} 8. e6 {[%clk 0:02:43.8]}
8... Bc5 {[%clk 0:02:42]} 9. exf7+ {[%clk 0:02:39.7]} 9... Kxf7 {[%clk 0:02:41]}
10. Be3 {[%clk 0:02:36.8]} 10... Re8 {[%clk 0:02:38.1]} 11. Be2 {[%clk
0:01:37.4]} 11... Bxd4 {[%clk 0:02:03.2]} 12. Qxd4 {[%clk 0:01:32.3]} 12... Nc6
{[%clk 0:02:00.4]} 13. Qc5 {[%clk 0:01:31.1]} 13... Qe7 {[%clk 0:01:37.9]} 14.
O-O-O {[%clk 0:01:02.3]} 14... Qxc5 {[%clk 0:01:36.8]} 15. Bxc5 {[%clk
0:01:02.7]} 15... Bxg2 {[%clk 0:01:36.7]} 16. Rhe1 {[%clk 0:01:03.2]} 16... Rxe2
{[%clk 0:01:30.8]} 17. Rxe2 {[%clk 0:01:02.4]} 17... Bf3 {[%clk 0:01:31.4]} 18.
Red2 {[%clk 0:01:02.5]} 18... Bxd1 {[%clk 0:01:31.3]} 19. Kxd1 {[%clk
0:01:02.7]} 19... Rd8 {[%clk 0:01:28.9]} 20. Ke2 {[%clk 0:01:03.2]} 20... b6
{[%clk 0:01:26.9]} 21. Be3 {[%clk 0:01:02.8]} 21... Rd7 {[%clk 0:01:23.6]} 22.
c3 {[%clk 0:01:02.7]} 22... Ne5 {[%clk 0:01:22.2]} 23. b3 {[%clk 0:01:02.3]}
23... c6 {[%clk 0:01:21.3]} 24. h3 {[%clk 0:01:01.9]} 24... Ng6 {[%clk
0:01:16.2]} 25. a4 {[%clk 0:01:00]} 25... Ne7 {[%clk 0:01:13]} 26. a5 {[%clk
0:00:59.4]} 26... c5 {[%clk 0:01:09.5]} 27. axb6 {[%clk 0:00:58.8]} 27... axb6
{[%clk 0:01:09.9]} 28. Ra2 {[%clk 0:00:58.6]} 28... d4 {[%clk 0:01:05.1]} 29.
cxd4 {[%clk 0:00:51.7]} 29... cxd4 {[%clk 0:01:05.2]} 30. Bd2 {[%clk 0:00:52.4]}
30... d3+ {[%clk 0:01:01]} 31. Kf3 {[%clk 0:00:52.8]} 31... Ng6 {[%clk
0:00:49.7]} 32. Ke4 {[%clk 0:00:49.8]} 32... Ne7 {[%clk 0:00:30.3]} 33. Ra4
{[%clk 0:00:25.1]} 33... Ke6 {[%clk 0:00:19.6]} 34. Rd4 {[%clk 0:00:21.9]} 34...
Rxd4+ {[%clk 0:00:17.2]} 35. Kxd4 {[%clk 0:00:22.8]} 35... Nf5+ {[%clk
0:00:15.2]} 36. Kxd3 {[%clk 0:00:22.8]} 36... Kd5 {[%clk 0:00:15.6]} 37. Bc3
{[%clk 0:00:19.9]} 37... b5 {[%clk 0:00:15.4]} 38. Bb2 {[%clk 0:00:18.8]} 38...
g6 {[%clk 0:00:15.6]} 39. Bf6 {[%clk 0:00:19]} 39... Ke6 {[%clk 0:00:15.3]} 40.
Bc3 {[%clk 0:00:18.6]} 40... Kd5 {[%clk 0:00:15.5]} 41. Bf6 {[%clk 0:00:18.6]}
41... Nd6 {[%clk 0:00:15.6]} 42. f3 {[%clk 0:00:17]} 42... Nf5 {[%clk
0:00:15.4]} 43. Kc3 {[%clk 0:00:13.3]} 43... Ke6 {[%clk 0:00:13.9]} 44. Bg5
{[%clk 0:00:10.7]} 44... Kd5 {[%clk 0:00:13.7]} 45. Bf6 {[%clk 0:00:06.8]} 45...
Nd6 {[%clk 0:00:12.5]} 46. Kb4 {[%clk 0:00:05.7]} 46... Kc6 {[%clk 0:00:12.4]}
47. Be5 {[%clk 0:00:05]} 47... Nf5 {[%clk 0:00:12.3]} 48. Kc3 {[%clk 0:00:05]}
48... Nh4 {[%clk 0:00:12.3]} 49. f4 {[%clk 0:00:04.7]} 49... Nf5 {[%clk
0:00:12.3]} 50. Kb4 {[%clk 0:00:03.4]} 50... Ne3 {[%clk 0:00:11.5]} 51. Kc3
{[%clk 0:00:03.4]} 51... Kd5 {[%clk 0:00:10.6]} 52. Kb4 {[%clk 0:00:03.1]} 52...
Kc6 {[%clk 0:00:10.5]} 53. Kc3 {[%clk 0:00:03.4]} 53... Nf5 {[%clk 0:00:10.7]}
54. Kd3 {[%clk 0:00:03.8]} 54... Kd5 {[%clk 0:00:10.5]} 55. Kc3 {[%clk
0:00:04.4]} 55... Ne7 {[%clk 0:00:10.5]} 56. Kb4 {[%clk 0:00:04]} 56... Kc6
{[%clk 0:00:11.2]} 57. Kc3 {[%clk 0:00:03.9]} 57... Kc5 {[%clk 0:00:11.2]} 58.
Kd3 {[%clk 0:00:03.4]} 58... Kd5 {[%clk 0:00:10.8]} 59. Kc3 {[%clk 0:00:02.9]}
59... Nc6 {[%clk 0:00:11]} 60. Bc7 {[%clk 0:00:03.3]} 60... Nd4 {[%clk
0:00:10.1]} 61. Kb4 {[%clk 0:00:02.5]} 61... Kc6 {[%clk 0:00:09.7]} 62. Be5
{[%clk 0:00:02.6]} 62... Nc2+ {[%clk 0:00:09.6]} 63. Kc3 {[%clk 0:00:02.8]}
63... Ne3 {[%clk 0:00:10.5]} 64. Kd3 {[%clk 0:00:03]} 64... Nf5 {[%clk
0:00:10.5]} 65. Ke4 {[%clk 0:00:03.9]} 65... Kc5 {[%clk 0:00:10.8]} 66. Kd3
{[%clk 0:00:02.7]} 66... Kb4 {[%clk 0:00:11.2]} 67. Kc2 {[%clk 0:00:03.2]} 67...
Ne3+ {[%clk 0:00:11]} 68. Kb2 {[%clk 0:00:03.7]} 68... Nd5 {[%clk 0:00:11.1]}
69. Bd4 {[%clk 0:00:02.6]} 69... Ka5 {[%clk 0:00:10.7]} 70. Be5 {[%clk
0:00:02.3]} 70... Kb6 {[%clk 0:00:10.7]} 71. Kc2 {[%clk 0:00:02.7]} 71... Kc5
{[%clk 0:00:10.7]} 72. Kd3 {[%clk 0:00:03.4]} 72... Ne7 {[%clk 0:00:10.5]} 73.
Ke4 {[%clk 0:00:03.5]} 73... Nc6 {[%clk 0:00:10.3]} 74. Bc3 {[%clk 0:00:03.2]}
74... Kd6 {[%clk 0:00:10.5]} 75. Be1 {[%clk 0:00:04.1]} 75... Ke6 {[%clk
0:00:10.8]} 76. b4 {[%clk 0:00:03.1]} 76... Ne7 {[%clk 0:00:10.8]} 77. Kd4
{[%clk 0:00:03.2]} 77... Kd6 {[%clk 0:00:10.7]} 78. Ke4 {[%clk 0:00:03.2]} 78...
Nf5 {[%clk 0:00:10.7]} 79. Bf2 {[%clk 0:00:03.7]} 79... Ke6 {[%clk 0:00:10.5]}
80. Be1 {[%clk 0:00:01.7]} 80... Ne7 {[%clk 0:00:10.5]} 81. Kf3 {[%clk
0:00:01.8]} 81... Nd5 {[%clk 0:00:10.5]} 82. Bf2 {[%clk 0:00:02.7]} 82... Kf5
{[%clk 0:00:10.7]} 83. Bc5 {[%clk 0:00:02.6]} 83... Nxf4 {[%clk 0:00:10.3]} 84.
Ke3 {[%clk 0:00:03.5]} 84... Nxh3 {[%clk 0:00:10]} 85. Kd4 {[%clk 0:00:04.4]}
85... Nf4 {[%clk 0:00:09.8]} 86. Bd6 {[%clk 0:00:04.1]} 86... Ne6+ {[%clk
0:00:09.5]} 87. Kd5 {[%clk 0:00:04.3]} 87... h5 {[%clk 0:00:10]} 88. Kc6 {[%clk
0:00:05.2]} 88... Nd4+ {[%clk 0:00:09.9]} 89. Kc5 {[%clk 0:00:05.3]} 89... Nc2
{[%clk 0:00:09.9]} 90. Kxb5 {[%clk 0:00:05.4]} 90... g5 {[%clk 0:00:09.8]} 91.
Kc4 {[%clk 0:00:05.5]} 91... g4 {[%clk 0:00:09.6]} 92. b5 {[%clk 0:00:06]} 92...
Na3+ {[%clk 0:00:09.9]} 93. Bxa3 {[%clk 0:00:06]} 93... g3 {[%clk 0:00:09.2]}
94. b6 {[%clk 0:00:05.7]} 94... h4 {[%clk 0:00:08.8]} 95. b7 {[%clk 0:00:05.9]}
95... h3 {[%clk 0:00:09.3]} 96. b8=Q {[%clk 0:00:06]} 96... h2 {[%clk
0:00:09.2]} 97. Qb7 {[%clk 0:00:04.7]} 97... Kg4 {[%clk 0:00:09.4]} 98. Qg2
{[%clk 0:00:05.1]} 1-0

[Event "Early-Titled-Tuesday-Blitz-March-05-2024"]
[Site "Chess.com"]
[Date "2024.03.05"]
[Round "11"]
[White "AlexeiShirov"]
[Black "Sebastian"]
[Result "1/2-1/2"]
[WhiteElo "2862"]
[BlackElo "2930"]
[TimeControl "180+1"]
[EndTime "10:12:25 PST"]
[Termination "Game drawn by repetition"]

1. e4 {[%clk 0:03:00.9]} 1... e5 {[%clk 0:03:00.2]} 2. Nf3 {[%clk 0:03:00.8]}
2... Nc6 {[%clk 0:03:00.2]} 3. Bb5 {[%clk 0:03:00.8]} 3... Nf6 {[%clk 0:03:00]}
4. O-O {[%clk 0:02:59.9]} 4... Nxe4 {[%clk 0:02:59.7]} 5. d4 {[%clk 0:02:59.9]}
5... Nd6 {[%clk 0:02:59.2]} 6. a4 {[%clk 0:02:59.6]} 6... exd4 {[%clk
0:02:51.5]} 7. Nxd4 {[%clk 0:02:20.3]} 7... Be7 {[%clk 0:02:50.3]} 8. Nc3 {[%clk
0:02:18.4]} 8... O-O {[%clk 0:02:48.2]} 9. Nd5 {[%clk 0:02:18]} 9... Bf6 {[%clk
0:02:44]} 10. Nf3 {[%clk 0:02:09.9]} 10... Nxb5 {[%clk 0:02:11.2]} 11. axb5
{[%clk 0:02:08.3]} 11... Ne5 {[%clk 0:02:11.7]} 12. b6 {[%clk 0:01:41.3]} 12...
cxb6 {[%clk 0:01:53.8]} 13. Be3 {[%clk 0:01:41]} 13... Nc4 {[%clk 0:01:27.9]}
14. Nxf6+ {[%clk 0:01:32.7]} 14... Qxf6 {[%clk 0:01:27.2]} 15. Bd4 {[%clk
0:01:33.2]} 15... Qf5 {[%clk 0:01:18.9]} 16. b3 {[%clk 0:01:27.2]} 16... Na5
{[%clk 0:01:17.7]} 17. Be5 {[%clk 0:01:14.7]} 17... d5 {[%clk 0:01:12.5]} 18.
Bd6 {[%clk 0:01:04.8]} 18... Re8 {[%clk 0:01:11]} 19. Nd4 {[%clk 0:01:03.5]}
19... Qg6 {[%clk 0:01:03.3]} 20. Bg3 {[%clk 0:00:43.8]} 20... Bd7 {[%clk
0:01:02.6]} 21. Qd2 {[%clk 0:00:41]} 21... h6 {[%clk 0:00:56.9]} 22. f4 {[%clk
0:00:40.5]} 22... Bf5 {[%clk 0:00:51.4]} 23. Rfe1 {[%clk 0:00:38.5]} 23... Nc6
{[%clk 0:00:33.9]} 24. c3 {[%clk 0:00:34.5]} 24... Be4 {[%clk 0:00:22]} 25. Nb5
{[%clk 0:00:31]} 25... Re7 {[%clk 0:00:19]} 26. Bh4 {[%clk 0:00:21.2]} 26... Rd7
{[%clk 0:00:15.8]} 27. Re3 {[%clk 0:00:19.9]} 27... a6 {[%clk 0:00:14.8]} 28.
Nd4 {[%clk 0:00:19.4]} 28... Nxd4 {[%clk 0:00:12.2]} 29. cxd4 {[%clk 0:00:19.7]}
29... Qh5 {[%clk 0:00:07.4]} 30. Bf2 {[%clk 0:00:18.2]} 30... Rc8 {[%clk
0:00:07.1]} 31. Rh3 {[%clk 0:00:18.3]} 31... Qf5 {[%clk 0:00:06.3]} 32. Rc1
{[%clk 0:00:16.2]} 32... Rdc7 {[%clk 0:00:05.7]} 33. Rxc7 {[%clk 0:00:15.8]}
33... Rxc7 {[%clk 0:00:06.6]} 34. Rc3 {[%clk 0:00:15.6]} 34... Rxc3 {[%clk
0:00:06.2]} 35. Qxc3 {[%clk 0:00:15.7]} 35... Qxf4 {[%clk 0:00:05.6]} 36. h3
{[%clk 0:00:13.3]} 36... Qg5 {[%clk 0:00:05.1]} 37. Bg3 {[%clk 0:00:12.8]} 37...
Kh7 {[%clk 0:00:05.4]} 38. Kh2 {[%clk 0:00:12.4]} 38... h5 {[%clk 0:00:05]} 39.
h4 {[%clk 0:00:12.4]} 39... Qg4 {[%clk 0:00:05.3]} 40. Qe3 {[%clk 0:00:12.4]}
40... f6 {[%clk 0:00:04.9]} 41. Qf2 {[%clk 0:00:12.5]} 41... a5 {[%clk
0:00:04.9]} 42. Bc7 {[%clk 0:00:12.4]} 42... Qe6 {[%clk 0:00:03.5]} 43. Qe2
{[%clk 0:00:12.7]} 43... Kg6 {[%clk 0:00:01.9]} 44. Bd8 {[%clk 0:00:12]} 44...
Qf5 {[%clk 0:00:02.4]} 45. Bxb6 {[%clk 0:00:11.7]} 45... Qf4+ {[%clk 0:00:02.8]}
46. Kg1 {[%clk 0:00:10.7]} 46... Qxh4 {[%clk 0:00:02.1]} 47. Bxa5 {[%clk
0:00:10.9]} 47... Qg4 {[%clk 0:00:02.6]} 48. Qxg4+ {[%clk 0:00:10]} 48... hxg4
{[%clk 0:00:03.5]} 49. Kf2 {[%clk 0:00:10.2]} 49... Kf5 {[%clk 0:00:02.9]} 50.
g3 {[%clk 0:00:10.4]} 50... g5 {[%clk 0:00:02.9]} 51. Ke3 {[%clk 0:00:10.1]}
51... Bc2 {[%clk 0:00:03.2]} 52. b4 {[%clk 0:00:10.3]} 52... Bb3 {[%clk
0:00:03.5]} 53. Bd8 {[%clk 0:00:10.3]} 53... Bc4 {[%clk 0:00:04]} 54. Be7 {[%clk
0:00:10.5]} 54... Ke6 {[%clk 0:00:04.3]} 55. Bd8 {[%clk 0:00:11]} 55... Bb5
{[%clk 0:00:04.6]} 56. Bc7 {[%clk 0:00:11]} 56... Kd7 {[%clk 0:00:04.4]} 57. Bb6
{[%clk 0:00:11.1]} 57... Bc4 {[%clk 0:00:04.5]} 58. Bc5 {[%clk 0:00:11.3]} 58...
f5 {[%clk 0:00:03.6]} 59. Bf8 {[%clk 0:00:11.5]} 59... Ke6 {[%clk 0:00:03.6]}
60. Bh6 {[%clk 0:00:11.9]} 60... Kf6 {[%clk 0:00:03.7]} 61. Bf8 {[%clk
0:00:12.5]} 61... f4+ {[%clk 0:00:02.5]} 62. gxf4 {[%clk 0:00:11.7]} 62... Kf5
{[%clk 0:00:02.9]} 63. fxg5 {[%clk 0:00:11.6]} 63... Kxg5 {[%clk 0:00:03.8]} 64.
Bd6 {[%clk 0:00:11.4]} 64... Kh4 {[%clk 0:00:03.9]} 65. Kf2 {[%clk 0:00:11.8]}
65... Kh3 {[%clk 0:00:04.4]} 66. Bg3 {[%clk 0:00:12.1]} 66... Bd3 {[%clk
0:00:04.9]} 67. Bf4 {[%clk 0:00:12.5]} 67... Be4 {[%clk 0:00:05.8]} 68. Bg3
{[%clk 0:00:13]} 68... Bf3 {[%clk 0:00:05]} 69. Bf4 {[%clk 0:00:13.5]} 69... Kh4
{[%clk 0:00:05.5]} 70. Bg3+ {[%clk 0:00:14.1]} 70... Kg5 {[%clk 0:00:06.1]} 71.
Ke3 {[%clk 0:00:14.6]} 71... Kf5 {[%clk 0:00:06.7]} 72. Be5 {[%clk 0:00:14.9]}
72... Ke6 {[%clk 0:00:07.2]} 73. Bg3 {[%clk 0:00:15.4]} 73... Kd7 {[%clk
0:00:07.8]} 74. Bf4 {[%clk 0:00:15.7]} 74... Kc6 {[%clk 0:00:08.4]} 75. Bg3
{[%clk 0:00:15.8]} 75... Kb5 {[%clk 0:00:09]} 76. Bd6 {[%clk 0:00:14.7]} 76...
Kc4 {[%clk 0:00:09.6]} 77. Bc5 {[%clk 0:00:14.4]} 77... Be4 {[%clk 0:00:10]} 78.
Kf2 {[%clk 0:00:14.3]} 78... Kd3 {[%clk 0:00:09.1]} 79. Kg3 {[%clk 0:00:14.2]}
79... Bf5 {[%clk 0:00:09.3]} 80. b5 {[%clk 0:00:14.4]} 80... Kc4 {[%clk
0:00:08.3]} 81. b6 {[%clk 0:00:14.8]} 81... Be6 {[%clk 0:00:08.5]} 82. Kf4
{[%clk 0:00:15.3]} 82... Bd7 {[%clk 0:00:08.3]} 83. Kg3 {[%clk 0:00:15.9]} 83...
Kd3 {[%clk 0:00:08.7]} 84. Kf4 {[%clk 0:00:16.5]} 84... Bc8 {[%clk 0:00:08.6]}
85. Kg3 {[%clk 0:00:17]} 85... Ke3 {[%clk 0:00:09.1]} 86. Kg2 {[%clk 0:00:14.9]}
86... Be6 {[%clk 0:00:08.4]} 87. Kg3 {[%clk 0:00:14.1]} 87... Bf5 {[%clk
0:00:09]} 88. Kg2 {[%clk 0:00:14]} 88... Be4+ {[%clk 0:00:09.6]} 89. Kg3 {[%clk
0:00:14.2]} 89... Bf3 {[%clk 0:00:10.2]} 90. Kh2 {[%clk 0:00:13.6]} 90... Kf2
{[%clk 0:00:08.2]} 91. Bd6 {[%clk 0:00:13.6]} 91... Be4 {[%clk 0:00:08.6]} 92.
Bg3+ {[%clk 0:00:10.9]} 92... Ke3 {[%clk 0:00:08.7]} 93. Be5 {[%clk 0:00:10.2]}
93... Kf3 {[%clk 0:00:09.2]} 94. Bg3 {[%clk 0:00:09.9]} 94... Bf5 {[%clk
0:00:09.8]} 95. Be5 {[%clk 0:00:10.2]} 95... Bd7 {[%clk 0:00:09.6]} 96. Bg3
{[%clk 0:00:10.1]} 96... Ke4 {[%clk 0:00:09.4]} 97. Be5 {[%clk 0:00:10.2]} 97...
Kd3 {[%clk 0:00:09.9]} 98. Kg3 {[%clk 0:00:09.6]} 98... Kc4 {[%clk 0:00:10.5]}
99. Bf6 {[%clk 0:00:08.9]} 99... Kb5 {[%clk 0:00:09.4]} 100. Bd8 {[%clk
0:00:09]} 100... Kc6 {[%clk 0:00:08.1]} 101. Kf4 {[%clk 0:00:08.8]} 101... Be6
{[%clk 0:00:08.3]} 102. Kg3 {[%clk 0:00:08.8]} 102... Kb5 {[%clk 0:00:08.7]}
103. Bc7 {[%clk 0:00:08.6]} 103... Kc4 {[%clk 0:00:08.7]} 104. Be5 {[%clk
0:00:08.8]} 104... Kc3 {[%clk 0:00:09]} 105. Kf2 {[%clk 0:00:08.8]} 105... Kd3
{[%clk 0:00:09.5]} 106. Kg3 {[%clk 0:00:08.8]} 106... Ke3 {[%clk 0:00:10.1]}
107. Kg2 {[%clk 0:00:07.8]} 107... Bd7 {[%clk 0:00:10.7]} 108. Kg3 {[%clk
0:00:07.9]} 108... Bf5 {[%clk 0:00:11.3]} 109. Bf6 {[%clk 0:00:07.4]} 109... Be6
{[%clk 0:00:10.8]} 110. Be5 {[%clk 0:00:07.9]} 110... Ke4 {[%clk 0:00:10.5]}
111. Bf6 {[%clk 0:00:08.4]} 111... Kf5 {[%clk 0:00:10.2]} 112. Be5 {[%clk
0:00:09]} 112... Bd7 {[%clk 0:00:10.7]} 113. Bd6 {[%clk 0:00:09.3]} 113... Be6
{[%clk 0:00:10.9]} 114. Be5 {[%clk 0:00:09.5]} 114... Ke4 {[%clk 0:00:10.8]}
115. Bf6 {[%clk 0:00:09.3]} 115... Kd3 {[%clk 0:00:11]} 116. Be5 {[%clk
0:00:09.6]} 116... Kc4 {[%clk 0:00:11.5]} 117. Bf6 {[%clk 0:00:09.6]} 117... Kb5
{[%clk 0:00:12.1]} 118. Bd8 {[%clk 0:00:09.7]} 118... Bd7 {[%clk 0:00:12.3]}
119. Bc7 {[%clk 0:00:09.7]} 119... Kb4 {[%clk 0:00:12.6]} 120. Bd8 {[%clk
0:00:09.8]} 120... Kc3 {[%clk 0:00:13.5]} 121. Bf6 {[%clk 0:00:09.7]} 121... Kd3
{[%clk 0:00:13.7]} 122. Be5 {[%clk 0:00:09.9]} 122... Ke3 {[%clk 0:00:13.4]}
123. Bf6 {[%clk 0:00:10.4]} 123... Ke4 {[%clk 0:00:13.4]} 124. Be5 {[%clk
0:00:10.9]} 124... Kf5 {[%clk 0:00:13.5]} 125. Bg7 {[%clk 0:00:11.2]} 125... Bc8
{[%clk 0:00:13.4]} 126. Be5 {[%clk 0:00:11.7]} 126... Bd7 {[%clk 0:00:13.8]}
1/2-1/2